bitfinex-derivatives/quotes_BTCF0:USTF0_20250805
["timestamp","ask_amount","ask_price","bid_price","bid_amount"]
[1754375711590,0.2785202,114450.0,114440.0,0.2930943]
[1754375711795,0.72398986,114450.0,114440.0,0.2930943]
[1754375712398,0.2785202,114450.0,114440.0,0.2930943]
[1754375712597,1.16945952,114450.0,114440.0,0.2930943]
[1754375718804,0.2785202,114450.0,114440.0,0.2930943]
[1754375719104,0.72398986,114450.0,114440.0,0.2930943]
[1754375721502,0.63100986,114450.0,114440.0,0.73856396]
[1754375721702,0.69803986,114450.0,114440.0,0.73856396]
[1754375721904,0.001,114450.0,114440.0,0.73856396]
[1754375722299,0.17576,114450.0,114440.0,0.2930943]
[1754375722498,0.17576,114450.0,114440.0,0.73856396]
[1754375722696,0.62122966,114450.0,114440.0,0.89568842]
[1754375723104,0.65298966,114450.0,114440.0,0.45021876]
[1754375723294,0.67634966,114450.0,114440.0,0.89568842]
[1754375723497,0.69780966,114450.0,114440.0,0.89568842]
[1754375723999,0.69680966,114450.0,114440.0,0.89768842]
[1754375724897,0.69680966,114450.0,114440.0,1.10202525]
[1754375725105,0.07658,114450.0,114440.0,0.94490079]
[1754375725306,0.52204966,114450.0,114440.0,0.94290079]
[1754375725601,0.52204966,114450.0,114440.0,0.94390079]
[1754375725803,0.69680966,114450.0,114440.0,0.94390079]
[1754375727205,0.69680966,114450.0,114440.0,1.10084619]
[1754375727406,0.69680966,114450.0,114440.0,0.89650936]
[1754375727601,0.52204966,114450.0,114440.0,0.89650936]
[1754375727808,0.00955,114450.0,114440.0,0.89650936]
[1754375728007,0.45501966,114450.0,114440.0,0.89650936]
[1754375728506,0.62977986,114450.0,114440.0,0.4510397]
[1754375728701,0.62977986,114450.0,114440.0,0.89650936]
[1754375728907,0.67534986,114450.0,114440.0,0.89650936]
[1754375729105,0.69680986,114450.0,114440.0,0.89650936]
[1754375729705,0.52204966,114450.0,114440.0,0.89650936]
[1754375729908,0.69680996,114450.0,114440.0,0.89650936]
[1754375730409,0.71243996,114450.0,114440.0,0.4510397]
[1754375730603,0.71243996,114450.0,114440.0,0.89650936]
[1754375732109,1.15790962,114450.0,114440.0,0.4162497]
[1754375732314,1.16767962,114450.0,114440.0,0.4038997]
[1754375732514,1.16767962,114450.0,114440.0,0.3712297]
[1754375733310,1.16767962,114450.0,114440.0,0.4038997]
[1754375733812,1.16867962,114450.0,114440.0,0.4028997]
[1754375734218,1.16867962,114450.0,114440.0,0.4121397]
[1754375736121,1.41817962,114450.0,114440.0,0.4352997]
[1754375737623,1.41817962,114450.0,114440.0,0.2783543]
[1754375738122,1.41817962,114450.0,114440.0,0.2932143]
[1754375738422,0.97270996,114450.0,114440.0,0.2932143]
[1754375739018,0.96293996,114450.0,114440.0,0.89562711]
[1754375741324,0.96293996,114450.0,114440.0,0.45015745]
[1754375741529,0.96293996,114450.0,114440.0,0.89562711]
[1754375742328,0.96293996,114450.0,114440.0,0.89662711]
[1754375743330,0.96193996,114450.0,114440.0,0.45115745]
[1754375743527,0.96193996,114450.0,114440.0,0.89662711]
[1754375743831,0.96293996,114450.0,114440.0,0.45115745]
[1754375744026,0.97270996,114450.0,114440.0,0.45115745]
[1754375745130,0.5272403,114450.0,114440.0,0.45115745]
[1754375745331,0.96293996,114450.0,114440.0,0.45115745]
[1754375745836,0.96293996,114450.0,114440.0,0.89662711]
[1754375748836,0.96293996,114450.0,114440.0,0.45115745]
[1754375749139,0.97270996,114450.0,114440.0,0.45115745]
[1754375749440,1.41817962,114450.0,114440.0,0.45115745]
[1754375750035,0.97270996,114450.0,114440.0,0.45115745]
[1754375751537,0.78817966,114450.0,114440.0,0.89662711]
[1754375751743,0.2505,114450.0,114440.0,0.89662711]
[1754375752340,0.2505,114450.0,114440.0,1.16142711]
[1754375754648,0.2505,114450.0,114440.0,1.11190938]
[1754375754847,0.2505,114450.0,114440.0,0.71595745]
[1754375756345,0.28544,114450.0,114440.0,0.71595745]
[1754375756550,0.29501,114450.0,114440.0,0.71595745]
[1754375757451,0.04551,114450.0,114440.0,0.71595745]
[1754375757848,0.01057,114450.0,114440.0,0.71595745]
[1754375762356,0.01057,114450.0,114440.0,1.11190938]
[1754375763656,0.001,114450.0,114440.0,1.11190938]
[1754375771261,0.001,114450.0,114440.0,0.95496623]
[1754375774567,0.001,114450.0,114440.0,1.15930306]
[1754375774769,0.44647282,114450.0,114440.0,1.20882395]
[1754375775570,0.62123292,114450.0,114440.0,1.20882395]
[1754375777773,0.1757601,114450.0,114440.0,1.20882395]
[1754375778068,0.71636292,114450.0,114440.0,1.20882395]
[1754375781976,0.71636292,114450.0,114440.0,0.94402395]
[1754375784586,0.2708901,114450.0,114440.0,0.94402395]
[1754375784782,0.71636292,114450.0,114440.0,0.94402395]
[1754375785286,0.71636292,114450.0,114440.0,0.49855113]
[1754375785487,0.2708901,114450.0,114440.0,0.94402395]
[1754375785785,0.71636292,114450.0,114440.0,0.94402395]
[1754375786382,0.2708901,114450.0,114440.0,0.94402395]
[1754375786585,0.71636292,114450.0,114440.0,0.94402395]
[1754375787188,0.2708901,114450.0,114440.0,0.94402395]
[1754375787389,0.71636292,114450.0,114440.0,0.94402395]
[1754375787688,0.2708901,114450.0,114440.0,0.94402395]
[1754375787888,0.71636292,114450.0,114440.0,1.20882395]
[1754375788293,0.2708901,114450.0,114440.0,1.20882395]
[1754375788481,0.71636292,114450.0,114440.0,1.20882395]
[1754375788993,0.2708901,114450.0,114440.0,1.20882395]
[1754375789181,0.71636292,114450.0,114440.0,0.76335113]
[1754375789385,0.71636292,114450.0,114440.0,1.20882395]
[1754375789786,0.2708901,114450.0,114440.0,1.20882395]
[1754375789987,0.71636292,114450.0,114440.0,1.20882395]
[1754375795694,0.72613292,114450.0,114440.0,1.20882395]
[1754375795900,0.71636292,114450.0,114440.0,1.20882395]
[1754375796294,0.71636292,114450.0,114440.0,1.00448712]
[1754375796596,0.71636292,114450.0,114440.0,0.98962712]
[1754375796793,0.71636292,114450.0,114440.0,1.00437712]
[1754375797596,0.71636292,114450.0,114440.0,1.20871395]
[1754375798397,0.2708901,114450.0,114440.0,1.20871395]
[1754375798592,0.71636292,114450.0,114440.0,1.20871395]
[1754375799798,0.71636292,114450.0,114440.0,0.94391395]
[1754375801893,0.45550282,114450.0,114440.0,0.94391395]
[1754375802497,0.001,114450.0,114440.0,1.10102464]
[1754375803295,0.001,114450.0,114440.0,0.94391395]
[1754375803588,0.001,114450.0,114440.0,0.73957712]
[1754375804291,0.001,114450.0,114440.0,0.08667]
[1754375804292,0.66220322,114450.0,114440.0,0.08667]
[1754375804497,1.11214604,114450.0,114440.0,0.2941256]
[1754375804800,0.2669204,114450.0,114440.0,0.2941256]
[1754375805000,0.71239322,114450.0,114440.0,0.2941256]
[1754375806593,0.2669204,114450.0,114440.0,0.2941256]
[1754375806799,0.6629707,114450.0,114440.0,0.2941256]
[1754375808108,0.6727407,114450.0,114440.0,0.2941256]
[1754375808604,1.068791,114450.0,114440.0,0.001]
[1754375808903,0.6727407,114450.0,114440.0,0.001]
[1754375809399,1.1727407,114450.0,114440.0,0.02551]
[1754375810298,1.4222407,114450.0,114440.0,0.001]
[1754375812705,1.4222407,114450.0,114440.0,0.02551]
[1754375816609,1.0261904,114450.0,114440.0,0.02551]
[1754375817015,1.4222407,114450.0,114440.0,0.12065]
[1754375817311,1.4124707,114450.0,114440.0,0.12065]
[1754375818016,1.4222407,114450.0,114440.0,0.12065]
[1754375818211,1.4222407,114450.0,114440.0,0.04173]
[1754375824011,1.818291,114450.0,114440.0,0.001]
[1754375829422,1.993051,114450.0,114440.0,0.001]
[1754375830621,1.818291,114450.0,114440.0,0.001]
[1754375847430,1.818291,114450.0,114440.0,0.02546]
[1754375848636,1.91778806,114450.0,114440.0,0.02546]
[1754375853338,2.36358689,114450.0,114440.0,0.02546]
[1754375853539,2.36358689,114450.0,114440.0,0.001]
[1754375856537,1.91778806,114450.0,114440.0,0.02388]
[1754375856741,2.36358689,114450.0,114440.0,0.02388]
[1754375857543,1.91778806,114450.0,114440.0,0.02388]
[1754375859844,2.36358689,114450.0,114440.0,0.02388]
[1754375861045,1.91778806,114450.0,114440.0,0.02388]
[1754375861650,2.36358689,114450.0,114440.0,0.02388]
[1754375863052,2.36358689,114450.0,114440.0,0.001]
[1754375867946,0.2719344,114440.0,114430.0,0.0541194]
[1754375868149,1.6801167,114430.0,114420.0,0.07103]
[1754375868353,2.79998726,114430.0,114420.0,0.11885]
[1754375869755,2.79998726,114430.0,114420.0,0.12085]
[1754375871144,2.79998726,114430.0,114420.0,0.12185]
[1754375871345,3.04948726,114430.0,114420.0,0.12185]
[1754375871647,3.04948726,114430.0,114420.0,0.04959]
[1754375871852,3.04948726,114430.0,114420.0,0.02388]
[1754375874758,3.04948726,114430.0,114420.0,0.03965]
[1754375875054,3.04948726,114430.0,114420.0,0.001]
[1754375875258,0.2229549,114420.0,114410.0,0.05037385]
[1754375875452,1.17333256,114420.0,114410.0,0.03865]
[1754375876048,1.17333256,114420.0,114410.0,0.05046299]
[1754375877751,0.2817349,114420.0,114410.0,0.08395299]
[1754375877955,1.17333256,114420.0,114410.0,0.08395299]
[1754375878258,1.17333256,114420.0,114410.0,0.09389299]
[1754375878458,1.17333256,114420.0,114410.0,0.11633299]
[1754375880857,1.17333256,114420.0,114410.0,0.11733299]
[1754375882564,1.17333256,114420.0,114410.0,0.08384299]
[1754375882763,1.17333256,114420.0,114410.0,0.05146299]
[1754375883754,1.17333256,114420.0,114410.0,0.13118299]
[1754375884463,1.17333256,114420.0,114410.0,0.11678299]
[1754375885466,1.17333256,114420.0,114410.0,0.05291299]
[1754375885867,1.17333256,114420.0,114410.0,0.03691299]
[1754375886569,1.42283256,114420.0,114410.0,0.03691299]
[1754375887468,1.42283256,114420.0,114410.0,0.01281299]
[1754375887867,1.42283256,114420.0,114410.0,0.03691299]
[1754375894978,1.42283256,114420.0,114410.0,0.05291299]
[1754375895179,1.42283256,114420.0,114410.0,0.08632299]
[1754375895678,1.42283256,114420.0,114410.0,0.09537299]
[1754375896279,0.5312349,114420.0,114410.0,0.09537299]
[1754375896474,1.42283256,114420.0,114410.0,0.09537299]
[1754375897178,1.41306256,114420.0,114410.0,0.30601309]
[1754375897376,1.41306256,114420.0,114410.0,0.13118299]
[1754375897874,1.42283256,114420.0,114410.0,0.03691299]
[1754375898283,1.42283256,114420.0,114410.0,0.08632299]
[1754375898580,1.42283256,114420.0,114410.0,0.11678299]
[1754375898779,1.42283256,114420.0,114410.0,0.13118299]
[1754375902084,1.42283256,114420.0,114410.0,0.11678299]
[1754375903785,1.41306256,114420.0,114410.0,0.11678299]
[1754375903988,1.41306256,114420.0,114410.0,0.13118299]
[1754375904284,1.42283256,114420.0,114410.0,0.13118299]
[1754375907287,1.42283256,114420.0,114410.0,0.11678299]
[1754375908989,1.42283256,114420.0,114410.0,0.03691299]
[1754375909385,1.41306256,114420.0,114410.0,0.01281299]
[1754375909585,1.42283256,114420.0,114410.0,0.01281299]
[1754375909780,0.26897,114410.0,114400.0,0.59576]
[1754375909983,1.16963766,114410.0,114400.0,0.0241]
[1754375910891,1.16963766,114410.0,114400.0,0.0261]
[1754375911190,1.16963766,114410.0,114400.0,0.0281]
[1754375911383,0.2780559,114400.0,114390.0,0.59724]
[1754375911583,1.16965356,114400.0,114390.0,0.62134]
[1754375911893,1.16965356,114400.0,114390.0,0.71378]
[1754375912392,1.16965356,114400.0,114390.0,0.72500074]
[1754375912992,1.41915356,114400.0,114390.0,0.72500074]
[1754375913191,1.41915356,114400.0,114390.0,0.72700074]
[1754375913391,0.2680061,114380.0,114370.0,1.4520556]
[1754375913589,0.71380493,114380.0,114370.0,1.4520556]
[1754375913784,0.71380493,114380.0,114370.0,0.2584656]
[1754375914095,0.2543314,114370.0,114360.0,0.53635422]
[1754375914296,0.62069023,114370.0,114360.0,1.1142865]
[1754375914490,0.62069023,114370.0,114360.0,0.66848767]
[1754375914686,0.57150689,114370.0,114360.0,1.26552767]
[1754375914892,0.63531689,114370.0,114360.0,1.10841698]
[1754375915089,0.66463689,114370.0,114360.0,0.90408015]
[1754375915294,0.67440689,114370.0,114360.0,0.90408015]
[1754375915495,0.92390689,114370.0,114360.0,0.90408015]
[1754375915791,0.67440689,114370.0,114360.0,0.90408015]
[1754375916094,0.91413689,114370.0,114360.0,0.90436015]
[1754375916297,0.5175214,114370.0,114360.0,0.90436015]
[1754375916491,0.91413689,114370.0,114360.0,0.90436015]
[1754375916691,0.91413689,114370.0,114360.0,0.30704015]
[1754375916886,0.4566914,114370.0,114360.0,0.9153372]
[1754375917398,0.4882014,114370.0,114360.0,0.9153372]
[1754375917596,0.5018914,114370.0,114360.0,0.9153372]
[1754375918590,0.5018914,114370.0,114360.0,0.3179372]
[1754375919298,0.89850689,114370.0,114360.0,0.3179372]
[1754375919895,0.91413689,114370.0,114360.0,0.3179372]
[1754375921299,0.92390689,114370.0,114360.0,0.3179372]
[1754375921489,0.91413689,114370.0,114360.0,0.2888572]
[1754375921689,0.92390689,114370.0,114360.0,0.3179372]
[1754375922092,0.5272914,114370.0,114360.0,0.3179372]
[1754375922291,0.92390689,114370.0,114360.0,0.3179372]
[1754375922489,0.91413689,114370.0,114360.0,0.3179372]
[1754375922899,0.91413689,114370.0,114360.0,0.9154172]
[1754375927598,0.92390689,114370.0,114360.0,0.9154172]
[1754375929198,0.91413689,114370.0,114360.0,0.9154172]
[1754375935707,0.91413689,114370.0,114360.0,0.3179372]
[1754375936606,0.96374201,114370.0,114360.0,0.3179372]
[1754375937406,0.96374201,114370.0,114360.0,0.1430305]
[1754375937607,0.97351201,114370.0,114360.0,0.1430305]
[1754375938110,0.97351201,114370.0,114360.0,0.1292405]
[1754375938310,1.41973262,114370.0,114360.0,0.0976005]
[1754375938505,1.41973262,114370.0,114360.0,0.0665905]
[1754375938812,1.41973262,114370.0,114360.0,0.0284405]
[1754375939311,1.41973262,114370.0,114360.0,0.0513005]
[1754375939711,1.41973262,114370.0,114360.0,0.6483005]
[1754375940615,0.92401437,114370.0,114360.0,0.6483005]
[1754375941007,0.92401437,114370.0,114360.0,0.7262405]
[1754375941208,0.92401437,114370.0,114360.0,0.7400305]
[1754375943114,0.91768437,114370.0,114360.0,0.9160575]
[1754375945411,0.91768437,114370.0,114360.0,1.07316819]
[1754375946213,0.91768437,114370.0,114360.0,0.80541119]
[1754375946417,0.92745437,114370.0,114360.0,0.78786774]
[1754375947018,0.92745437,114370.0,114360.0,0.67978705]
[1754375947211,0.92745437,114370.0,114360.0,0.08278705]
[1754375947412,0.92745437,114370.0,114360.0,0.67974705]
[1754375947608,0.92745437,114370.0,114360.0,0.64702705]
[1754375948926,0.92745437,114370.0,114360.0,0.82193405]
[1754375949121,0.92745437,114370.0,114360.0,0.88514405]
[1754375949310,0.92745437,114370.0,114360.0,0.90005405]
[1754375956831,0.91768437,114370.0,114360.0,0.90005405]
[1754375958838,0.4908814,114370.0,114360.0,0.90005405]
[1754375959034,0.91768437,114370.0,114360.0,0.90005405]
[1754375960240,0.92745437,114370.0,114360.0,0.90005395]
[1754375962038,0.2495,114370.0,114360.0,0.71755068]
[1754375963540,0.79975307,114390.0,114380.0,0.2923464]
[1754375963740,1.04925307,114390.0,114380.0,0.2923464]
[1754375963940,0.6088111,114390.0,114380.0,0.2923464]
[1754375964140,1.00553407,114390.0,114380.0,0.2923464]
[1754375964341,0.6088111,114390.0,114380.0,0.2923464]
[1754375964540,1.00553407,114390.0,114380.0,0.2923464]
[1754375964740,0.75903407,114390.0,114380.0,0.2923464]
[1754375964941,1.00853407,114390.0,114380.0,0.2923464]
[1754375965240,1.00953407,114390.0,114380.0,0.2923464]
[1754375965545,0.96581507,114390.0,114380.0,0.2923464]
[1754375966139,0.5690921,114390.0,114380.0,0.2923464]
[1754375968248,0.96581507,114390.0,114380.0,0.2923464]
[1754375968447,0.5253739,114390.0,114380.0,0.2923464]
[1754375969842,0.93186687,114390.0,114380.0,0.11747]
[1754375971635,0.93186687,114390.0,114380.0,0.2923464]
[1754375973150,0.93186687,114390.0,114380.0,0.11747]
[1754375973751,0.93186687,114390.0,114380.0,0.2923464]
[1754375974956,0.92209687,114390.0,114380.0,0.2774364]
[1754375975148,0.92209687,114390.0,114380.0,0.2932164]
[1754375976351,0.90418687,114390.0,114380.0,0.2932164]
[1754375976552,0.5074639,114390.0,114380.0,0.2932164]
[1754375976853,0.5230939,114390.0,114380.0,0.2932164]
[1754375977351,0.91981687,114390.0,114380.0,0.2932164]
[1754375978553,0.5230939,114390.0,114380.0,0.2932164]
[1754375978744,0.91981687,114390.0,114380.0,0.2932164]
[1754375979350,0.92958687,114390.0,114380.0,0.2932164]
[1754375980654,0.5328639,114390.0,114380.0,0.2932164]
[1754375980852,0.92958687,114390.0,114380.0,0.2932164]
[1754375982354,0.91981687,114390.0,114380.0,0.2932164]
[1754375983656,0.92958687,114390.0,114380.0,0.2932164]
[1754375985554,0.91981687,114390.0,114380.0,0.2932164]
[1754375987556,0.92958687,114390.0,114380.0,0.2932164]
[1754375989659,0.92958687,114390.0,114380.0,0.45032709]
[1754375990461,0.92958687,114390.0,114380.0,0.2932164]
[1754375991364,0.92958687,114390.0,114380.0,0.45032709]
[1754375999068,0.92958687,114390.0,114380.0,0.45062923]
[1754376002671,1.42505406,114390.0,114380.0,0.45062923]
[1754376003172,0.5328639,114390.0,114380.0,0.45062923]
[1754376003367,1.42505406,114390.0,114380.0,0.15741283]
[1754376003868,0.2776472,114380.0,114370.0,0.03937]
[1754376004067,0.72374228,114380.0,114370.0,0.03937]
[1754376004666,0.72374228,114380.0,114370.0,0.02381]
[1754376005472,0.72474228,114380.0,114370.0,0.02381]
[1754376005669,0.2776616,114370.0,114360.0,0.51812815]
[1754376005874,0.72375668,114370.0,114360.0,0.51812815]
[1754376006172,0.72375668,114370.0,114360.0,0.56818815]
[1754376006562,0.72375668,114370.0,114360.0,0.59980815]
[1754376006765,0.67434077,114370.0,114360.0,0.59980815]
[1754376006969,0.67434077,114370.0,114360.0,0.33500815]
[1754376007166,0.67434077,114370.0,114360.0,0.03470705]
[1754376007369,0.67434077,114370.0,114360.0,0.20961395]
[1754376007669,0.67434077,114370.0,114360.0,0.03470705]
[1754376008175,0.67434077,114370.0,114360.0,0.30607405]
[1754376008376,0.67534077,114370.0,114360.0,0.30607405]
[1754376009268,0.92484077,114370.0,114360.0,0.30607405]
[1754376009474,0.5281616,114370.0,114360.0,0.30607405]
[1754376009671,0.92484077,114370.0,114360.0,0.30607405]
[1754376011372,0.92484077,114370.0,114360.0,0.13116705]
[1754376011576,0.92484077,114370.0,114360.0,0.11638705]
[1754376012472,0.92484077,114370.0,114360.0,0.29129405]
[1754376013774,0.92484077,114370.0,114360.0,0.05026705]
[1754376015279,0.92484077,114370.0,114360.0,0.03470705]
[1754376017174,0.92484077,114370.0,114360.0,0.01089705]
[1754376017368,0.277677,114360.0,114350.0,0.3678604]
[1754376017571,0.67435617,114360.0,114350.0,0.3826404]
[1754376017779,0.277677,114360.0,114350.0,0.3826404]
[1754376018390,0.267907,114360.0,114350.0,0.41865673]
[1754376018783,0.267907,114360.0,114350.0,0.41965673]
[1754376019981,0.267907,114360.0,114350.0,0.57706956]
[1754376021580,0.277677,114360.0,114350.0,0.57706956]
[1754376021781,0.67435617,114360.0,114350.0,0.57706956]
[1754376023080,0.66458617,114360.0,114350.0,0.57706956]
[1754376023984,0.67435617,114360.0,114350.0,0.53333956]
[1754376025180,0.267907,114360.0,114350.0,0.47482956]
[1754376025485,0.67435617,114360.0,114350.0,0.33219673]
[1754376026880,0.92385617,114360.0,114350.0,0.33219673]
[1754376028087,0.92385617,114360.0,114350.0,0.48960956]
[1754376028787,0.527177,114360.0,114350.0,0.48960956]
[1754376028989,0.96371705,114360.0,114350.0,0.48960956]
[1754376029288,0.96371705,114360.0,114350.0,0.93591961]
[1754376030088,0.96371705,114360.0,114350.0,0.48960956]
[1754376030287,0.96371705,114360.0,114350.0,0.93591961]
[1754376031087,0.96371705,114360.0,114340.0,0.1749356]
[1754376031088,1.09490225,114360.0,114340.0,0.62124565]
[1754376031284,1.11834225,114360.0,114350.0,0.2220943]
[1754376031485,1.5646523,114360.0,114350.0,0.2220943]
[1754376032792,0.6720322,114360.0,114350.0,0.2220943]
[1754376032987,1.5646523,114360.0,114350.0,0.2220943]
[1754376033182,1.5646523,114360.0,114350.0,0.2881443]
[1754376033387,1.5646523,114360.0,114350.0,0.2578386]
[1754376035586,1.5646523,114360.0,114350.0,0.2255186]
[1754376037099,1.5656523,114360.0,114350.0,0.2255186]
[1754376037698,1.5666523,114360.0,114350.0,0.2255186]
[1754376041501,1.5666523,114360.0,114350.0,0.2248986]
[1754376042498,1.5666523,114360.0,114350.0,0.2248043]
[1754376043203,1.5666523,114360.0,114350.0,0.04989]
[1754376043502,1.5666523,114360.0,114350.0,0.01616]
[1754376044403,0.1749214,114350.0,114340.0,0.39522843]
[1754376044600,0.74027145,114350.0,114340.0,0.36827453]
[1754376047507,0.74027145,114350.0,114340.0,0.36765453]
[1754376047706,0.74027145,114350.0,114340.0,0.36827453]
[1754376048306,0.74027145,114350.0,114340.0,0.52571346]
[1754376049711,0.74027145,114350.0,114340.0,0.22718673]
[1754376049904,0.74027145,114350.0,114340.0,0.23873673]
[1754376050409,0.74027145,114350.0,114340.0,0.23912673]
[1754376050613,0.74027145,114350.0,114340.0,0.44346356]
[1754376051111,0.2939614,114350.0,114340.0,0.44346356]
[1754376051310,0.74027145,114350.0,114340.0,0.46604356]
[1754376051705,0.74027145,114350.0,114340.0,0.44346356]
[1754376053807,0.74027145,114350.0,114340.0,0.41536356]
[1754376054111,0.74027145,114350.0,114340.0,0.43153636]
[1754376054304,0.74027145,114350.0,114340.0,0.23874953]
[1754376054506,0.74027145,114350.0,114340.0,0.26171953]
[1754376054810,0.62123145,114350.0,114340.0,0.28081953]
[1754376055004,0.74027145,114350.0,114340.0,0.28081953]
[1754376055307,0.74027145,114350.0,114340.0,0.72712958]
[1754376055703,0.74027145,114350.0,114340.0,0.28081953]
[1754376056003,0.74027145,114350.0,114340.0,0.72712958]
[1754376056806,0.74027145,114350.0,114340.0,0.28081953]
[1754376057009,0.74027145,114350.0,114340.0,0.72712958]
[1754376057409,0.2939614,114350.0,114340.0,0.72712958]
[1754376057611,0.74027145,114350.0,114340.0,0.28081953]
[1754376058311,0.74027145,114350.0,114340.0,0.72712958]
[1754376058512,0.74027145,114350.0,114340.0,0.28081953]
[1754376058709,0.74027145,114350.0,114340.0,0.72712958]
[1754376059317,0.74027145,114350.0,114340.0,0.28081953]
[1754376059709,0.74027145,114350.0,114340.0,0.72712958]
[1754376061115,0.74027145,114350.0,114340.0,0.28081953]
[1754376061414,0.74027145,114350.0,114340.0,0.72712958]
[1754376062116,0.74027145,114350.0,114340.0,0.28081953]
[1754376062516,0.74027145,114350.0,114340.0,0.72712958]
[1754376064920,0.74027145,114350.0,114340.0,0.28081953]
[1754376065324,0.74027145,114350.0,114340.0,0.72712958]
[1754376066216,0.74027145,114350.0,114340.0,0.28081953]
[1754376066420,0.74027145,114350.0,114340.0,0.72712958]
[1754376067725,0.2939614,114350.0,114340.0,0.72712958]
[1754376068827,0.74027145,114350.0,114340.0,0.72712958]
[1754376069620,0.2939614,114350.0,114340.0,0.72712958]
[1754376070228,0.74027145,114350.0,114340.0,0.72712958]
[1754376071325,0.00988,114350.0,114340.0,0.72712958]
[1754376071527,0.5421378,114360.0,114350.0,0.2451214]
[1754376071834,0.5421378,114360.0,114350.0,0.69143145]
[1754376072033,0.5421378,114360.0,114350.0,0.40252924]
[1754376072232,0.5421378,114360.0,114350.0,0.84883929]
[1754376072530,0.98844785,114360.0,114350.0,0.84883929]
[1754376072731,0.99044785,114360.0,114350.0,0.84883929]
[1754376074928,0.5441378,114360.0,114350.0,0.84883929]
[1754376075135,0.99044785,114360.0,114350.0,0.69143145]
[1754376075335,0.99044785,114360.0,114350.0,0.84877681]
[1754376076237,0.99044785,114360.0,114350.0,0.69143145]
[1754376076440,0.36922,114360.0,114350.0,0.84876669]
[1754376076735,0.2515,114360.0,114350.0,0.84876669]
[1754376076928,0.27503,114360.0,114350.0,0.84876669]
[1754376077125,0.27503,114360.0,114350.0,0.69143145]
[1754376077334,0.27503,114360.0,114350.0,0.89576828]
[1754376077634,0.07055,114390.0,114380.0,0.2214353]
[1754376077838,0.24768242,114390.0,114380.0,0.2673253]
[1754376078033,0.24768242,114390.0,114380.0,0.71363535]
[1754376078534,0.69399247,114390.0,114380.0,0.71363535]
[1754376078736,0.24768242,114390.0,114380.0,0.2673253]
[1754376079334,0.25168242,114390.0,114380.0,0.2673253]
[1754376079734,0.28970242,114390.0,114380.0,0.2673253]
[1754376080438,0.29170242,114390.0,114380.0,0.2673253]
[1754376080834,0.1808601,114390.0,114380.0,0.2533153]
[1754376081039,0.2985801,114390.0,114380.0,0.67315878]
[1754376081635,0.2985801,114390.0,114380.0,0.2767353]
[1754376083836,0.03762,114390.0,114380.0,0.2767353]
[1754376084142,0.10019,114390.0,114380.0,0.67315878]
[1754376084538,0.12372,114390.0,114380.0,0.67315878]
[1754376084742,0.29858,114390.0,114380.0,0.2767353]
[1754376085742,0.69500348,114390.0,114380.0,0.2324653]
[1754376085942,0.69500348,114390.0,114380.0,0.2140353]
[1754376086348,0.69500348,114390.0,114380.0,0.2324653]
[1754376086534,0.69500348,114390.0,114380.0,0.1748753]
[1754376086742,0.2925955,114380.0,114370.0,0.31917605]
[1754376086942,0.68901898,114380.0,114370.0,0.19259025]
[1754376087843,0.1748755,114380.0,114370.0,0.20912025]
[1754376088045,0.2233855,114380.0,114370.0,0.69087373]
[1754376088246,0.2550055,114380.0,114370.0,0.69087373]
[1754376088948,0.2560055,114380.0,114370.0,0.69087373]
[1754376089149,0.2720655,114380.0,114370.0,0.69087373]
[1754376089847,0.2955955,114380.0,114370.0,0.29445025]
[1754376090148,0.69201898,114380.0,114370.0,0.29445025]
[1754376090645,0.2955955,114380.0,114370.0,0.29445025]
[1754376093149,0.2959055,114380.0,114370.0,0.29445025]
[1754376099257,0.2959055,114380.0,114370.0,0.27302025]
[1754376099452,0.04971,114380.0,114370.0,0.69107373]
[1754376099657,0.2572754,114380.0,114370.0,0.69107373]
[1754376101358,0.2723654,114380.0,114370.0,0.69107373]
[1754376104160,0.2723654,114380.0,114370.0,0.29465025]
[1754376104462,0.2723654,114380.0,114370.0,0.69107373]
[1754376105165,0.2723654,114380.0,114370.0,0.67337428]
[1754376108559,0.2723654,114380.0,114370.0,1.88241428]
[1754376109364,0.2723654,114380.0,114370.0,1.4859908]
[1754376109566,0.2709854,114380.0,114370.0,1.88241428]
[1754376109765,0.2943954,114380.0,114370.0,1.88241428]
[1754376110569,0.2943954,114380.0,114370.0,2.03967752]
[1754376110865,0.2709854,114380.0,114370.0,2.03967752]
[1754376111062,0.01208,114380.0,114370.0,2.03967752]
[1754376111467,0.01208,114380.0,114370.0,1.88241428]
[1754376111869,0.01208,114380.0,114370.0,1.4859908]
[1754376112069,0.01208,114380.0,114370.0,1.88241428]
[1754376112970,0.01208,114380.0,114370.0,2.03967752]
[1754376114676,0.04494,114380.0,114370.0,2.03967752]
[1754376114873,0.2198155,114380.0,114370.0,1.64325404]
[1754376115170,0.04494,114380.0,114370.0,2.03967752]
[1754376116370,0.04494,114380.0,114370.0,1.64325404]
[1754376116571,0.2198153,114380.0,114370.0,2.03967752]
[1754376116873,0.2558953,114380.0,114370.0,2.03967752]
[1754376117772,0.2709853,114380.0,114370.0,2.03967752]
[1754376118265,0.2709853,114380.0,114370.0,1.64325404]
[1754376118469,0.2709853,114380.0,114370.0,2.03967752]
[1754376118768,0.2709853,114380.0,114370.0,1.64325404]
[1754376118973,0.2709853,114380.0,114370.0,2.03967752]
[1754376119366,0.2709853,114380.0,114370.0,1.88241428]
[1754376120886,0.003,114380.0,114370.0,1.88241428]
[1754376122388,0.177876,114380.0,114370.0,2.14721428]
[1754376122780,0.003,114380.0,114370.0,2.14721428]
[1754376128591,0.003,114380.0,114370.0,1.7507908]
[1754376128792,0.003,114380.0,114370.0,2.14721428]
[1754376129690,0.003,114380.0,114370.0,2.30453556]
[1754376131989,0.1778759,114380.0,114370.0,2.30453556]
[1754376132791,0.1778759,114380.0,114370.0,2.35408456]
[1754376132994,0.003,114380.0,114370.0,2.35408456]
[1754376133687,0.003,114380.0,114370.0,2.19676328]
[1754376134089,0.003,114380.0,114370.0,1.93196328]
[1754376134288,0.1778759,114380.0,114370.0,1.4859908]
[1754376134489,0.1778759,114380.0,114370.0,1.93196328]
[1754376137192,0.2102559,114380.0,114370.0,1.93196328]
[1754376137395,0.2417259,114380.0,114370.0,1.93196328]
[1754376137796,0.2417259,114380.0,114370.0,0.72292328]
[1754376138891,0.2417259,114380.0,114370.0,0.92726011]
[1754376139298,0.2417254,114380.0,114370.0,0.92726011]
[1754376139995,0.2417254,114380.0,114370.0,1.19206011]
[1754376141100,0.2417254,114380.0,114370.0,0.98772328]
[1754376142395,0.2417254,114380.0,114370.0,0.5417508]
[1754376142701,0.2417254,114380.0,114370.0,0.98772328]
[1754376143501,0.2564854,114380.0,114370.0,0.98772328]
[1754376144303,0.06685,114380.0,114370.0,0.98772328]
[1754376144903,0.03247,114380.0,114370.0,0.98872328]
[1754376145103,0.03147,114380.0,114370.0,0.98872328]
[1754376145293,0.03247,114380.0,114370.0,0.98872328]
[1754376145903,0.03247,114380.0,114370.0,0.72292328]
[1754376146503,0.2073454,114380.0,114370.0,0.72292328]